[Event "World Senior chT-65 2019"]
[Site "Rhodes"]
[Date "2019.04.19"]
[Round "4.8"]
[White "Buchal, Stephan"]
[Black "Pushkov, Nikolai"]
[Result "1-0"]
[ECO "A14"]
[WhiteElo "2283"]
[BlackElo "2295"]
[PlyCount "157"]
[EventDate "2019.04.16"]
[EventType "team-tourn"]
[EventCountry "GRE"]
[TimeControl "40/5400+30:1800+30"]

1. c4 {[%emt 0:00:00]} e6 {[%emt 0:00:00]} 2. g3 {[%emt 0:00:00]} Nf6 {[%emt 0:00:07]} 3. Bg2 {[%emt 0:00:00]} d5 {[%emt 0:00:08]} 4. Nf3 {[%emt 0:00:05]} Be7 {[%emt 0:00:44]} 5. O-O {[%emt 0:00:16]} O-O {[%emt 0:00:16]} 6. b3 {[%emt 0:00:13]} b6 {[%emt 0:01:01]} 7. Bb2 {[%emt 0:00:44]} Bb7 {[%emt 0:00:18]} 8. e3 {[%emt 0:00:38]} Nbd7 {[%emt 0:03:17]} 9. Nc3 {[%emt 0:02:15]} Ne4 {[%emt 0:03:05]} 10. cxd5 {[%emt 0:03:08]} exd5 {[%emt 0:02:43]} 11. Ne2 {[%emt 0:02:55]} Bf6 {[%emt 0:01:06]} 12. Qc2 {[%emt 0:03:33]} Bxb2 {[%emt 0:09:49]} 13. Qxb2 {[%emt 0:00:25]} c5 {[%emt 0:01:14]} 14. Rfd1 {[%emt 0:10:41]} Qf6 {[%emt 0:03:09]} 15. Qxf6 {[%emt 0:05:13]} Ndxf6 {[%emt 0:00:15]} 16. d3 {[%emt 0:14:01]} Nd6 {[%emt 0:01:11]} 17. d4 {[%emt 0:05:47]} c4 {[%emt 0:02:07]} 18. Ne5 {[%emt 0:02:13]} Rac8 {[%emt 0:05:51]} 19. bxc4 {[%emt 0:13:31]} Nxc4 {[%emt 0:00:23]} 20. Nf4 {[%emt 0:03:01]} g5 {[%emt 0:08:38]} 21. Nfd3 {[%emt 0:02:07]} Na3 {[%emt 0:00:09]} 22. Bh3 {[%emt 0:07:47]} Rc2 {[%emt 0:10:32]} 23. Rdc1 {[%emt 0:03:19]} Bc8 {[%emt 0:04:32]} 24. Bg2 {[%emt 0:03:50]} Be6 {[%emt 0:07:28]} 25. Nb4 {[%emt 0:02:04]} Rcc8 {[%emt 0:03:38]} 26. Bf1 {[%emt 0:03:44]} Nc4 {[%emt 0:02:13]} 27. Nxc4 {[%emt 0:03:13]} dxc4 {[%emt 0:00:04]} 28. Bg2 {[%emt 0:00:14]} a5 {[%emt 0:01:51]} 29. Nc6 {[%emt 0:00:26]} Rc7 {[%emt 0:00:02]} 30. Rab1 {[%emt 0:01:21]} Rfc8 {[%emt 0:04:56]} 31. Rxb6 {[%emt 0:01:13]} Nd5 {[%emt 0:00:13]} 32. Bxd5 {[%emt 0:01:37]} Bxd5 {[%emt 0:00:02]} 33. Nxa5 {[%emt 0:00:41]} g4 {[%emt 0:02:55]} 34. Kf1 {[%emt 0:02:00]} c3 {[%emt 0:01:59]} 35. Ke2 {[%emt 0:01:27]} Ra8 {[%emt 0:02:15]} 36. Rb5 {[%emt 0:00:39]} Bf3+ {[%emt 0:00:09]} 37. Kd3 {[%emt 0:00:39]} Rca7 {[%emt 0:00:07]} 38. Nc4 {[%emt 0:02:11]} Rxa2 {[%emt 0:00:04]} 39. Rxc3 {[%emt 0:00:56]} Rxf2 {[%emt 0:00:36]} 40. Rb2 {[%emt 0:00:00]} Rxb2 {[%emt 0:00:00]} 41. Nxb2 {[%emt 0:01:14]} Ra2 {[%emt 0:05:01]} 42. Rb3 {[%emt 0:10:27]} f5 {[%emt 0:00:31]} 43. Kc4 {[%emt 0:02:16]} Kf7 {[%emt 0:04:59]} 44. Kc5 {[%emt 0:00:52]} h5 {[%emt 0:00:43]} 45. Rb6 {[%emt 0:07:16]} Be4 {[%emt 0:04:34]} 46. Rb5 {[%emt 0:01:14]} Ke6 {[%emt 0:01:38]} 47. Rb6+ {[%emt 0:05:25]} Kd7 {[%emt 0:01:18]} 48. d5 {[%emt 0:03:04]} Ra5+ {[%emt 0:01:45]} 49. Rb5 {[%emt 0:00:02]} Rxb5+ {[%emt 0:00:17]} 50. Kxb5 {[%emt 0:00:02]} Bxd5 {[%emt 0:00:01]} 51. Kc5 {[%emt 0:00:28]} Bf7 {[%emt 0:00:26]} 52. Nd3 {[%emt 0:00:36]} Ke6 {[%emt 0:00:06]} 53. Kd4 {[%emt 0:00:10]} Kf6 {[%emt 0:00:10]} 54. Nf4 {[%emt 0:00:27]} Kg5 {[%emt 0:06:41]} 55. Ke5 {[%emt 0:00:10]} Ba2 {[%emt 0:00:34]} 56. Ng2 {[%emt 0:01:54]} Bb1 {[%emt 0:00:26]} 57. Nh4 {[%emt 0:00:33]} Bc2 {[%emt 0:00:36]} 58. Ke6 {[%emt 0:00:21]} Bb3+ {[%emt 0:00:27]} 59. Ke7 {[%emt 0:01:36]} Bd5 {[%emt 0:00:14]} 60. Kd6 {[%emt 0:00:25]} Ba2 {[%emt 0:02:03]} 61. Ke7 {[%emt 0:01:43]} Bd5 {[%emt 0:00:15]} 62. Kd6 {[%emt 0:00:04]} Ba2 {[%emt 0:00:06]} 63. Ng2 {[%emt 0:00:03]} Bb3 {[%emt 0:00:52]} 64. Ke5 {[%emt 0:01:55]} Ba2 {[%emt 0:02:49]} 65. Nf4 {[%emt 0:01:06]} Bb3 {[%emt 0:00:40]} 66. Ne2 {[%emt 0:00:12]} Bc2 {[%emt 0:04:59]} 67. Nd4 {[%emt 0:00:05]} Be4 {[%emt 0:00:12]} 68. Ke6 {[%emt 0:00:21]} Bd3 {[%emt 0:01:20]} 69. Kf7 {[%emt 0:00:20]} Bc4+ {[%emt 0:04:50]} 70. Kg7 {[%emt 0:00:12]} Bd5 {[%emt 0:01:11]} 71. Ne2 {[%emt 0:00:15]} h4 {[%emt 0:01:14]} 72. Nf4 {[%emt 0:00:10]} hxg3 {[%emt 0:00:18]} 73. hxg3 {[%emt 0:00:03]} Bc4 {[%emt 0:00:12]} 74. Ng6 {[%emt 0:00:19]} f4 {[%emt 0:06:11]} 75. exf4+ {[%emt 0:00:30]} Kf5 {[%emt 0:00:10]} 76. Kh6 {[%emt 0:01:30]} Ke4 {[%emt 0:02:51]} 77. Ne5 {[%emt 0:01:20]} Be6 {[%emt 0:02:26]} 78. Kg5 {[%emt 0:00:08]} Bc8 {[%emt 0:00:06]} 79. Kh4 {[%emt 0:00:16]} 1-0

[Event "World Senior chT-65 2019"]
[Site "Rhodes"]
[Date "2019.04.19"]
[Round "4.11"]
[White "Hammar, Bengt"]
[Black "Stebbings, Anthony J"]
[Result "0-1"]
[ECO "E16"]
[WhiteElo "2206"]
[BlackElo "2281"]
[PlyCount "60"]
[EventDate "2019.04.16"]
[EventType "team-tourn"]
[EventCountry "GRE"]
[TimeControl "40/5400+30:1800+30"]

1. d4 {[%emt 0:00:00]} Nf6 {[%emt 0:00:00]} 2. c4 {[%emt 0:00:24]} e6 {[%emt 0:00:00]} 3. Nf3 {[%emt 0:01:29]} Bb4+ {[%emt 0:00:05]} 4. Bd2 {[%emt 0:00:54]} a5 {[%emt 0:00:14]} 5. Nc3 {[%emt 0:02:31]} b6 {[%emt 0:00:59]} 6. g3 {[%emt 0:03:18]} Bb7 {[%emt 0:00:34]} 7. Bg2 {[%emt 0:00:11]} O-O {[%emt 0:01:28]} 8. O-O {[%emt 0:01:06]} d6 {[%emt 0:00:24]} 9. Qc2 {[%emt 0:05:46]} Nbd7 {[%emt 0:00:09]} 10. Rad1 {[%emt 0:01:18]} h6 {[%emt 0:04:58]} 11. Rfe1 {[%emt 0:03:51]} Bxc3 {[%emt 0:00:08]} 12. Bxc3 {[%emt 0:00:24]} Be4 {[%emt 0:00:18]} 13. Qc1 {[%emt 0:01:42]} c6 {[%emt 0:12:29]} 14. Bh3 {[%emt 0:05:45]} d5 {[%emt 0:08:04]} 15. b3 {[%emt 0:07:41]} b5 {[%emt 0:11:37]} 16. Nd2 {[%emt 0:02:13]} Bg6 {[%emt 0:02:54]} 17. Bb2 {[%emt 0:04:55]} Qb8 {[%emt 0:03:04]} 18. Bg2 {[%emt 0:01:58]} a4 {[%emt 0:05:07]} 19. h3 {[%emt 0:13:56]} axb3 {[%emt 0:01:35]} 20. axb3 {[%emt 0:00:08]} bxc4 {[%emt 0:01:20]} 21. bxc4 {[%emt 0:00:09]} Ra2 {[%emt 0:06:59]} 22. Bc3 {[%emt 0:00:54]} Bc2 {[%emt 0:03:57]} 23. e4 {[%emt 0:01:46]} Bxd1 {[%emt 0:02:28]} 24. Rxd1 {[%emt 0:01:09]} dxe4 {[%emt 0:01:55]} 25. Nxe4 {[%emt 0:00:08]} Qb3 {[%emt 0:02:55]} 26. d5 {[%emt 0:05:18]} Rc2 {[%emt 0:04:20]} 27. Qe3 {[%emt 0:01:48]} Nxe4 {[%emt 0:01:00]} 28. Qxe4 {[%emt 0:00:29]} cxd5 {[%emt 0:01:49]} 29. cxd5 {[%emt 0:00:27]} Rxc3 {[%emt 0:00:27]} 30. Rb1 {[%emt 0:00:57]} Qxd5 {[%emt 0:00:39]} 0-1

[Event "World Senior chT-65 2019"]
[Site "Rhodes"]
[Date "2019.04.19"]
[Round "4.12"]
[White "Quinn, John M"]
[Black "Hedin, Gunnar"]
[Result "1/2-1/2"]
[ECO "A80"]
[WhiteElo "2140"]
[BlackElo "2195"]
[PlyCount "92"]
[EventDate "2019.04.16"]
[EventType "team-tourn"]
[EventCountry "GRE"]
[TimeControl "40/5400+30:1800+30"]

1. d4 {[%emt 0:02:37]} f5 {[%emt 0:00:00]} 2. Bg5 {[%emt 0:00:37]} g6 {[%emt 0:00:08]} 3. Nc3 {[%emt 0:00:27]} Bg7 {[%emt 0:00:43]} 4. h4 {[%emt 0:01:29]} h6 {[%emt 0:03:13]} 5. Bf4 {[%emt 0:00:10]} d6 {[%emt 0:00:25]} 6. e3 {[%emt 0:01:36]} Nc6 {[%emt 0:03:40]} 7. d5 {[%emt 0:07:00]} Ne5 {[%emt 0:02:30]} 8. Bb5+ {[%emt 0:20:21]} Bd7 {[%emt 0:03:42]} 9. Bxe5 {[%emt 0:05:53]} dxe5 {[%emt 0:19:07]} 10. Qe2 {[%emt 0:10:06]} a6 {[%emt 0:10:44]} 11. Bxd7+ {[%emt 0:06:47]} Qxd7 {[%emt 0:00:19]} 12. e4 {[%emt 0:00:06]} f4 {[%emt 0:12:04]} 13. Nf3 {[%emt 0:03:42]} e6 {[%emt 0:09:27]} 14. O-O-O {[%emt 0:01:47]} O-O-O {[%emt 0:02:47]} 15. Qc4 {[%emt 0:03:44]} Ne7 {[%emt 0:09:43]} 16. dxe6 {[%emt 0:04:41]} Qc6 {[%emt 0:01:13]} 17. Qb3 {[%emt 0:04:49]} Rxd1+ {[%emt 0:05:36]} 18. Rxd1 {[%emt 0:00:10]} Rd8 {[%emt 0:00:40]} 19. Rxd8+ {[%emt 0:06:06]} Kxd8 {[%emt 0:00:03]} 20. Nd5 {[%emt 0:00:32]} b6 {[%emt 0:06:45]} 21. Qd3 {[%emt 0:04:30]} Qd6 {[%emt 0:02:38]} 22. Qxa6 {[%emt 0:03:24]} Qxe6 {[%emt 0:00:15]} 23. Qa8+ {[%emt 0:00:47]} Nc8 {[%emt 0:00:28]} 24. Qb7 {[%emt 0:03:41]} Qd7 {[%emt 0:01:03]} 25. a4 {[%emt 0:03:26]} c6 {[%emt 0:00:35]} 26. Qxd7+ {[%emt 0:00:26]} Kxd7 {[%emt 0:00:01]} 27. Nc3 {[%emt 0:00:10]} Ke6 {[%emt 0:00:14]} 28. Kd2 {[%emt 0:00:23]} Bf8 {[%emt 0:00:12]} 29. Ke2 {[%emt 0:01:25]} Nd6 {[%emt 0:00:46]} 30. Kd3 {[%emt 0:00:58]} Nb7 {[%emt 0:00:11]} 31. Nd2 {[%emt 0:00:23]} Bc5 {[%emt 0:00:15]} 32. Nd1 {[%emt 0:00:38]} Be7 {[%emt 0:00:02]} 33. b3 {[%emt 0:01:38]} Bxh4 {[%emt 0:00:10]} 34. f3 {[%emt 0:00:05]} Bd8 {[%emt 0:00:23]} 35. Nf2 {[%emt 0:00:11]} h5 {[%emt 0:00:23]} 36. Kc4 {[%emt 0:00:30]} g5 {[%emt 0:03:17]} 37. b4 {[%emt 0:00:12]} Nd6+ {[%emt 0:00:22]} 38. Kc3 {[%emt 0:00:13]} Kd7 {[%emt 0:00:19]} 39. Nc4 {[%emt 0:00:38]} Nxc4 {[%emt 0:00:46]} 40. Kxc4 {[%emt 0:00:00]} Kd6 {[%emt 0:00:00]} 41. b5 {[%emt 0:05:57]} Bc7 {[%emt 0:07:56]} 42. Kb4 {[%emt 0:01:56]} Kd7 {[%emt 0:02:39]} 43. Nh3 {[%emt 0:04:24]} Bd8 {[%emt 0:01:16]} 44. Nf2 {[%emt 0:00:31]} Bc7 {[%emt 0:00:39]} 45. Nh3 {[%emt 0:00:14]} Bd8 {[%emt 0:00:04]} 46. Nf2 {[%emt 0:00:04]} Bc7 {[%emt 0:00:05]} 1/2-1/2

[Event "World Senior chT-65 2019"]
[Site "Rhodes"]
[Date "2019.04.19"]
[Round "4.13"]
[White "Opl, Klaus"]
[Black "Karason, Askell O"]
[Result "1-0"]
[ECO "E52"]
[WhiteElo "2188"]
[BlackElo "2252"]
[PlyCount "71"]
[EventDate "2019.04.16"]
[EventType "team-tourn"]
[EventCountry "GRE"]
[TimeControl "40/5400+30:1800+30"]

1. d4 {[%emt 0:00:00]} Nf6 {[%emt 0:00:00]} 2. c4 {[%emt 0:00:00]} e6 {[%emt 0:00:00]} 3. Nc3 {[%emt 0:00:08]} Bb4 {[%emt 0:00:00]} 4. e3 {[%emt 0:00:20]} O-O {[%emt 0:00:21]} 5. Bd3 {[%emt 0:00:17]} d5 {[%emt 0:00:00]} 6. Nf3 {[%emt 0:00:11]} b6 {[%emt 0:00:00]} 7. cxd5 {[%emt 0:00:57]} exd5 {[%emt 0:00:00]} 8. O-O {[%emt 0:00:19]} Bb7 {[%emt 0:00:00]} 9. a3 {[%emt 0:03:43]} Bd6 {[%emt 0:00:07]} 10. b4 {[%emt 0:00:50]} a6 {[%emt 0:01:16]} 11. Bb2 {[%emt 0:02:02]} Nbd7 {[%emt 0:00:11]} 12. Qb3 {[%emt 0:05:35]} Rb8 {[%emt 0:03:06]} 13. Bb1 {[%emt 0:07:40]} Re8 {[%emt 0:07:25]} 14. Ba2 {[%emt 0:03:59]} Nf8 {[%emt 0:16:16]} 15. a4 {[%emt 0:07:47]} c6 {[%emt 0:06:24]} 16. Rad1 {[%emt 0:06:17]} b5 {[%emt 0:05:38]} 17. Ne5 {[%emt 0:12:08]} Qe7 {[%emt 0:05:50]} 18. f3 {[%emt 0:00:29]} Bxb4 {[%emt 0:01:34]} 19. e4 {[%emt 0:00:21]} Bd6 {[%emt 0:09:25]} 20. axb5 {[%emt 0:03:03]} cxb5 {[%emt 0:02:36]} 21. Nxd5 {[%emt 0:03:51]} Nxd5 {[%emt 0:00:38]} 22. exd5 {[%emt 0:00:04]} Qh4 {[%emt 0:01:18]} 23. f4 {[%emt 0:05:17]} Rbd8 {[%emt 0:01:27]} 24. g3 {[%emt 0:05:40]} Qh5 {[%emt 0:01:04]} 25. Rfe1 {[%emt 0:02:17]} f6 {[%emt 0:01:33]} 26. Nc6 {[%emt 0:02:19]} Rxe1+ {[%emt 0:02:53]} 27. Rxe1 {[%emt 0:00:02]} Re8 {[%emt 0:00:12]} 28. Ne5 {[%emt 0:08:10]} Re7 {[%emt 0:04:38]} 29. Ba3 {[%emt 0:01:06]} Bxa3 {[%emt 0:04:07]} 30. Qxa3 {[%emt 0:03:04]} Re8 {[%emt 0:02:57]} 31. d6+ {[%emt 0:01:30]} Kh8 {[%emt 0:00:02]} 32. d7 {[%emt 0:04:33]} Nxd7 {[%emt 0:01:52]} 33. Nf7+ {[%emt 0:00:36]} Qxf7 {[%emt 0:00:10]} 34. Bxf7 {[%emt 0:00:02]} Rxe1+ {[%emt 0:00:07]} 35. Kf2 {[%emt 0:00:48]} Re4 {[%emt 0:02:23]} 36. Qd6 {[%emt 0:00:48]} 1-0

[Event "World Senior chT-65 2019"]
[Site "Rhodes"]
[Date "2019.04.19"]
[Round "4.14"]
[White "Viglundsson, Bjorgvin"]
[Black "Titz, Heimo"]
[Result "1-0"]
[ECO "E12"]
[WhiteElo "2170"]
[BlackElo "2096"]
[PlyCount "71"]
[EventDate "2019.04.16"]
[EventType "team-tourn"]
[EventCountry "GRE"]
[TimeControl "40/5400+30:1800+30"]

1. d4 {[%emt 0:00:09]} Nf6 {[%emt 0:00:00]} 2. c4 {[%emt 0:00:05]} e6 {[%emt 0:00:00]} 3. Nf3 {[%emt 0:00:00]} b6 {[%emt 0:01:41]} 4. a3 {[%emt 0:00:00]} Bb7 {[%emt 0:01:25]} 5. Nc3 {[%emt 0:02:07]} Be7 {[%emt 0:06:24]} 6. d5 {[%emt 0:06:40]} O-O {[%emt 0:06:44]} 7. g3 {[%emt 0:01:38]} a5 {[%emt 0:03:12]} 8. Bg2 {[%emt 0:00:26]} Na6 {[%emt 0:00:18]} 9. O-O {[%emt 0:01:09]} Nc5 {[%emt 0:01:32]} 10. Nd4 {[%emt 0:08:46]} exd5 {[%emt 0:07:30]} 11. cxd5 {[%emt 0:00:30]} Re8 {[%emt 0:04:13]} 12. Bf4 {[%emt 0:04:32]} Bf8 {[%emt 0:09:14]} 13. Rc1 {[%emt 0:04:43]} d6 14. b4 {[%emt 0:05:42]} axb4 {[%emt 0:01:10]} 15. axb4 {[%emt 0:08:12]} Nce4 {[%emt 0:04:45]} 16. Nxe4 {[%emt 0:00:25]} Nxe4 {[%emt 0:04:01]} 17. Nb5 {[%emt 0:16:32]} Qf6 {[%emt 0:05:33]} 18. Qd3 {[%emt 0:01:16]} Ba6 {[%emt 0:03:19]} 19. Bxe4 {[%emt 0:00:00]} Bxb5 {[%emt 0:00:34]} 20. Bxh7+ {[%emt 0:00:15]} Kh8 {[%emt 0:08:36]} 21. Qxb5 {[%emt 0:00:00]} Kxh7 22. Rxc7 {[%emt 0:13:16]} Qb2 {[%emt 0:04:06]} 23. Be3 {[%emt 0:04:19]} Kg8 {[%emt 0:00:17]} 24. Rfc1 {[%emt 0:00:00]} Re4 25. Qd7 {[%emt 0:12:18]} Re7 {[%emt 0:01:53]} 26. Qc6 {[%emt 0:00:15]} Rxc7 {[%emt 0:19:21]} 27. Qxc7 {[%emt 0:00:10]} Qxe2 {[%emt 0:03:13]} 28. Qxb6 {[%emt 0:00:57]} Ra3 {[%emt 0:04:36]} 29. Qd4 {[%emt 0:01:50]} Rd3 {[%emt 0:02:28]} 30. Qe4 {[%emt 0:00:30]} g6 {[%emt 0:03:05]} 31. Kg2 {[%emt 0:01:05]} Rb3 {[%emt 0:01:15]} 32. Rc8 {[%emt 0:01:02]} Rxe3 {[%emt 0:00:00]} 33. Qxe3 {[%emt 0:00:00]} Qb5 {[%emt 0:00:00]} 34. Qe4 {[%emt 0:00:00]} Qb7 {[%emt 0:01:35]} 35. Rc6 {[%emt 0:00:00]} Qb5 {[%emt 0:00:48]} 36. Qc4 {[%emt 0:00:51]} 1-0

[Event "World Senior chT-65 2019"]
[Site "Rhodes"]
[Date "2019.04.19"]
[Round "4.15"]
[White "Strobel, Ferdinand"]
[Black "Halldorsson, Bragi"]
[Result "0-1"]
[ECO "B20"]
[WhiteElo "1974"]
[BlackElo "2112"]
[PlyCount "48"]
[EventDate "2019.04.16"]
[EventType "team-tourn"]
[EventCountry "GRE"]
[TimeControl "40/5400+30:1800+30"]

1. f4 {[%emt 0:00:00]} d5 {[%emt 0:00:00]} 2. Nf3 {[%emt 0:00:00]} g6 {[%emt 0:00:00]} 3. g3 {[%emt 0:00:11]} Bg7 {[%emt 0:00:09]} 4. Bg2 {[%emt 0:00:15]} e6 {[%emt 0:00:12]} 5. O-O {[%emt 0:00:43]} Ne7 {[%emt 0:00:12]} 6. d3 {[%emt 0:01:22]} O-O {[%emt 0:00:36]} 7. e4 {[%emt 0:03:04]} c5 {[%emt 0:01:15]} 8. c3 {[%emt 0:08:20]} Nbc6 9. Nbd2 {[%emt 0:15:09]} b5 10. e5 {[%emt 0:03:25]} Rb8 11. Kh1 {[%emt 0:12:34]} b4 12. c4 {[%emt 0:16:54]} Qb6 {[%emt 0:07:17]} 13. g4 {[%emt 0:00:00]} f6 {[%emt 0:24:06]} 14. Qe1 {[%emt 0:00:00]} fxe5 {[%emt 0:01:38]} 15. Nxe5 {[%emt 0:00:09]} Nxe5 {[%emt 0:00:46]} 16. fxe5 {[%emt 0:00:09]} Bb7 {[%emt 0:01:18]} 17. Nf3 {[%emt 0:09:26]} dxc4 {[%emt 0:00:06]} 18. dxc4 {[%emt 0:03:10]} Qc7 {[%emt 0:10:38]} 19. Bg5 {[%emt 0:11:09]} Nc6 {[%emt 0:00:14]} 20. Bf6 {[%emt 0:02:46]} Bxf6 {[%emt 0:02:03]} 21. exf6 {[%emt 0:00:00]} Rxf6 {[%emt 0:02:06]} 22. g5 {[%emt 0:03:07]} Rf7 {[%emt 0:04:01]} 23. Qxe6 {[%emt 0:01:20]} Rbf8 {[%emt 0:00:57]} 24. Nd2 {[%emt 0:02:03]} Nd4 {[%emt 0:01:27]} 0-1

[Event "World Senior chT-65 2019"]
[Site "Rhodes"]
[Date "2019.04.19"]
[Round "4.16"]
[White "Kristinsson, Jon"]
[Black "Danner, Lambert"]
[Result "1/2-1/2"]
[ECO "A81"]
[WhiteElo "2094"]
[BlackElo "2013"]
[PlyCount "28"]
[EventDate "2019.04.16"]
[EventType "team-tourn"]
[EventCountry "GRE"]
[TimeControl "40/5400+30:1800+30"]

1. d4 {[%emt 0:00:00]} f5 {[%emt 0:00:00]} 2. g3 {[%emt 0:00:00]} Nf6 {[%emt 0:00:00]} 3. Bg2 {[%emt 0:00:02]} d6 {[%emt 0:00:15]} 4. Nf3 {[%emt 0:00:33]} g6 {[%emt 0:00:15]} 5. O-O {[%emt 0:00:25]} Bg7 {[%emt 0:00:09]} 6. Nbd2 {[%emt 0:00:50]} Nc6 {[%emt 0:06:20]} 7. c3 {[%emt 0:04:09]} e5 {[%emt 0:01:36]} 8. dxe5 {[%emt 0:12:49]} dxe5 {[%emt 0:00:53]} 9. Nc4 {[%emt 0:02:44]} Qxd1 {[%emt 0:03:54]} 10. Rxd1 {[%emt 0:00:04]} e4 {[%emt 0:01:42]} 11. Nd4 {[%emt 0:12:18]} Nxd4 {[%emt 0:01:17]} 12. cxd4 {[%emt 0:01:50]} Be6 {[%emt 0:01:21]} 13. b3 {[%emt 0:04:31]} O-O-O {[%emt 0:01:17]} 14. Bf4 {[%emt 0:09:40]} Nd5 {[%emt 0:02:24]} 1/2-1/2

[Event "World Senior chT-65 2019"]
[Site "Rhodes"]
[Date "2019.04.19"]
[Round "4.17"]
[White "Boehnisch, Manfred"]
[Black "Birnboim, Nathan"]
[Result "0-1"]
[ECO "C01"]
[WhiteElo "2287"]
[BlackElo "2365"]
[PlyCount "80"]
[EventDate "2019.04.16"]
[EventType "team-tourn"]
[EventCountry "GRE"]
[TimeControl "40/5400+30:1800+30"]

1. e4 {[%emt 0:00:00]} e6 {[%emt 0:00:00]} 2. d4 {[%emt 0:00:00]} d5 {[%emt 0:00:00]} 3. exd5 {[%emt 0:00:27]} exd5 {[%emt 0:00:00]} 4. Nf3 {[%emt 0:00:09]} Nf6 {[%emt 0:03:35]} 5. Bg5 {[%emt 0:00:15]} Be7 {[%emt 0:01:11]} 6. Bd3 {[%emt 0:00:58]} O-O {[%emt 0:01:42]} 7. O-O {[%emt 0:00:46]} Nc6 {[%emt 0:05:39]} 8. c3 {[%emt 0:08:22]} h6 {[%emt 0:12:29]} 9. Bxf6 {[%emt 0:04:13]} Bxf6 {[%emt 0:00:12]} 10. Nbd2 {[%emt 0:02:41]} Qd6 {[%emt 0:03:22]} 11. Re1 {[%emt 0:00:49]} Bd7 {[%emt 0:02:40]} 12. Nf1 {[%emt 0:04:59]} Rfe8 {[%emt 0:01:56]} 13. Ne3 {[%emt 0:01:09]} g6 {[%emt 0:08:01]} 14. Re2 {[%emt 0:11:28]} Be6 {[%emt 0:02:30]} 15. Qc2 {[%emt 0:03:04]} Kg7 {[%emt 0:02:51]} 16. Rae1 {[%emt 0:00:44]} h5 {[%emt 0:02:18]} 17. b4 {[%emt 0:03:33]} Bd7 $14 {[%emt 0:12:56]} 18. a4 {[%emt 0:05:19]} Rad8 {[%emt 0:05:31]} 19. Qa2 {[%emt 0:04:52]} Bc8 {[%emt 0:01:57]} 20. a5 {[%emt 0:01:52]} Rh8 {[%emt 0:06:42]} 21. b5 {[%emt 0:02:12]} Ne7 {[%emt 0:00:27]} 22. Ne5 {[%emt 0:03:55]} Bxe5 {[%emt 0:00:31]} 23. dxe5 {[%emt 0:00:06]} Qc5 {[%emt 0:00:08]} 24. Qb2 {[%emt 0:01:13]} d4 {[%emt 0:01:31]} 25. cxd4 {[%emt 0:00:41]} Qxd4 {[%emt 0:00:08]} 26. Qa3 {[%emt 0:04:47]} Nd5 {[%emt 0:03:01]} 27. Nc2 {[%emt 0:08:54]} Qc3 {[%emt 0:00:18]} 28. Be4 {[%emt 0:01:18]} Qxa3 {[%emt 0:05:07]} 29. Nxa3 {[%emt 0:00:08]} Nc3 {[%emt 0:01:21]} 30. Re3 {[%emt 0:00:07]} Nxe4 {[%emt 0:00:44]} 31. Rxe4 {[%emt 0:00:06]} Rd3 {[%emt 0:00:41]} 32. R4e3 {[%emt 0:01:07]} Rhd8 {[%emt 0:00:28]} 33. f4 {[%emt 0:01:09]} Be6 {[%emt 0:00:35]} 34. Kf2 {[%emt 0:04:28]} R3d4 {[%emt 0:00:53]} 35. Re4 {[%emt 0:03:08]} Bf5 {[%emt 0:01:09]} 36. Rxd4 {[%emt 0:06:42]} Rxd4 {[%emt 0:00:04]} 37. Rc1 {[%emt 0:00:17]} Rxf4+ {[%emt 0:00:23]} 38. Kg1 {[%emt 0:00:10]} Ra4 {[%emt 0:00:59]} 39. Nc4 {[%emt 0:00:18]} Be6 {[%emt 0:01:53]} 40. b6 {[%emt 0:00:00]} axb6 {[%emt 0:00:00]} 0-1

[Event "World Senior chT-65 2019"]
[Site "Rhodes"]
[Date "2019.04.19"]
[Round "4.18"]
[White "Berkovich, Mark A"]
[Black "Beltz, Robert"]
[Result "1-0"]
[ECO "B10"]
[WhiteElo "2332"]
[BlackElo "2158"]
[PlyCount "85"]
[EventDate "2019.04.16"]
[EventType "team-tourn"]
[EventCountry "GRE"]
[TimeControl "40/5400+30:1800+30"]

1. c4 {[%emt 0:00:00]} c6 {[%emt 0:00:00]} 2. e4 {[%emt 0:00:00]} d5 {[%emt 0:00:29]} 3. exd5 {[%emt 0:00:00]} cxd5 {[%emt 0:00:02]} 4. cxd5 {[%emt 0:00:04]} Nf6 {[%emt 0:00:33]} 5. Bb5+ {[%emt 0:00:14]} Bd7 {[%emt 0:02:19]} 6. Bc4 {[%emt 0:00:12]} b5 {[%emt 0:06:03]} 7. Bb3 {[%emt 0:00:14]} Bg4 {[%emt 0:02:41]} 8. Nf3 {[%emt 0:06:32]} Nxd5 {[%emt 0:04:05]} 9. Nc3 {[%emt 0:00:22]} Nxc3 {[%emt 0:04:33]} 10. bxc3 {[%emt 0:04:03]} e6 {[%emt 0:00:12]} 11. Qe2 {[%emt 0:05:03]} Nd7 {[%emt 0:07:24]} 12. Qxb5 {[%emt 0:03:50]} Bxf3 {[%emt 0:04:15]} 13. gxf3 {[%emt 0:00:07]} Rb8 {[%emt 0:00:15]} 14. Qe2 {[%emt 0:02:57]} Bd6 {[%emt 0:01:06]} 15. d4 {[%emt 0:03:13]} O-O {[%emt 0:05:37]} 16. f4 {[%emt 0:01:45]} Qc7 {[%emt 0:00:00]} 17. Qf3 {[%emt 0:01:23]} Rfc8 {[%emt 0:00:32]} 18. c4 {[%emt 0:10:08]} Bb4+ {[%emt 0:00:52]} 19. Kf1 {[%emt 0:01:57]} a5 {[%emt 0:00:28]} 20. Kg2 {[%emt 0:02:28]} Qa7 {[%emt 0:03:04]} 21. Rd1 {[%emt 0:06:12]} Nf6 {[%emt 0:01:53]} 22. a4 {[%emt 0:05:14]} Bc3 {[%emt 0:05:42]} 23. Qxc3 {[%emt 0:02:57]} Qb7+ {[%emt 0:03:08]} 24. d5 {[%emt 0:02:20]} Qxb3 {[%emt 0:00:03]} 25. Qxb3 {[%emt 0:00:12]} Rxb3 {[%emt 0:00:14]} 26. d6 {[%emt 0:01:17]} Nd7 {[%emt 0:08:00]} 27. Bd2 {[%emt 0:08:07]} Rd3 {[%emt 0:18:07]} 28. Bxa5 {[%emt 0:03:51]} Rxd1 {[%emt 0:00:33]} 29. Rxd1 {[%emt 0:00:04]} Rxc4 {[%emt 0:00:09]} 30. Ra1 {[%emt 0:00:38]} Rc6 {[%emt 0:06:21]} 31. Bc7 {[%emt 0:00:57]} Ra6 {[%emt 0:01:03]} 32. Kf3 {[%emt 0:04:32]} Kf8 {[%emt 0:01:08]} 33. Ke3 {[%emt 0:00:52]} Ke8 {[%emt 0:08:49]} 34. a5 {[%emt 0:10:10]} Nf6 {[%emt 0:00:00]} 35. Kd4 {[%emt 0:00:49]} Kd7 {[%emt 0:00:00]} 36. Kc5 {[%emt 0:02:43]} Nd5 {[%emt 0:04:20]} 37. Kb5 {[%emt 0:00:36]} Ra8 {[%emt 0:01:47]} 38. Rc1 {[%emt 0:08:22]} g6 {[%emt 0:02:00]} 39. a6 {[%emt 0:03:12]} h6 {[%emt 0:00:57]} 40. Rc6 {[%emt 0:01:25]} f6 {[%emt 0:04:02]} 41. Rb6 {[%emt 0:03:35]} Nc3+ {[%emt 0:04:55]} 42. Ka5 {[%emt 0:01:18]} Kc8 {[%emt 0:00:00]} 43. Rb8+ {[%emt 0:02:57]} 1-0